[Event "NOR-ch Various 2019"]
[Site "Larvik"]
[Date "2019.07.06"]
[Round "1.19"]
[White "Bruaset, Eivind"]
[Black "Kizatbay, Abyl"]
[Result "0-1"]
[ECO "B90"]
[WhiteElo "2074"]
[BlackElo "2216"]
[Annotator "NA"]
[PlyCount "82"]
[EventDate "2019.07.06"]
[EventType "swiss"]
[EventCountry "NOR"]
[SourceTitle "playchess.com"]
[Source "ChessBase"]
[SourceQuality "1"]
[TimeControl "40/5400+30:1800+30"]

1. e4 {[%emt 0:00:00]} c5 {[%emt 0:00:00]} 2. Nf3 {[%emt 0:00:00]} d6 {[%emt 0:00:00]} 3. d4 {[%emt 0:00:00]} cxd4 {[%emt 0:00:00]} 4. Nxd4 {[%emt 0:00:00]} Nf6 {[%emt 0:00:00]} 5. Nc3 {[%emt 0:00:00]} a6 {[%emt 0:00:29]} 6. h3 {[%emt 0:00:54]} e5 {[%emt 0:00:17]} 7. Nde2 {[%emt 0:00:17]} h5 {[%emt 0:00:36]} 8. Bg5 {[%emt 0:03:24]} Be6 {[%emt 0:02:21]} 9. g3 {[%emt 0:03:55]} Nbd7 {[%emt 0:02:44]} 10. Bg2 {[%emt 0:00:33]} Be7 {[%emt 0:06:44]} 11. O-O {[%emt 0:02:54]} Rc8 {[%emt 0:05:36]} 12. Qd2 {[%emt 0:14:04]} O-O {[%emt 0:01:40]} 13. Rfe1 {[%emt 0:08:35]} Qc7 {[%emt 0:03:40]} 14. Rac1 {[%emt 0:03:48]} b5 {[%emt 0:13:24]} 15. Nd1 {[%emt 0:03:57]} Nb6 {[%emt 0:05:29]} 16. b3 {[%emt 0:06:24]} Rfd8 {[%emt 0:04:14]} 17. Bxf6 {[%emt 0:03:41]} Bxf6 {[%emt 0:00:20]} 18. Ne3 {[%emt 0:00:14]} Bg5 {[%emt 0:09:14]} 19. f4 {[%emt 0:04:27]} Bh6 {[%emt 0:03:44]} 20. Red1 {[%emt 0:04:18]} h4 {[%emt 0:02:43]} 21. Ng4 {[%emt 0:03:31]} Qc5+ {[%emt 0:05:28]} 22. Kh1 {[%emt 0:00:57]} Bxg4 {[%emt 0:02:00]} 23. hxg4 {[%emt 0:00:10]} hxg3 {[%emt 0:00:29]} 24. b4 {[%emt 0:09:57]} Qf2 {[%emt 0:06:07]} 25. g5 {[%emt 0:00:29]} exf4 {[%emt 0:00:58]} 26. Rf1 {[%emt 0:00:52]} Nc4 {[%emt 0:00:40]} 27. Qd1 {[%emt 0:04:40]} Qxg2+ {[%emt 0:02:40]} 28. Kxg2 {[%emt 0:00:09]} Ne3+ {[%emt 0:00:04]} 29. Kf3 {[%emt 0:10:08]} Nxd1 {[%emt 0:00:07]} 30. gxh6 {[%emt 0:01:14]} Ne3 {[%emt 0:01:41]} 31. Rg1 {[%emt 0:00:54]} Nxc2 {[%emt 0:02:59]} 32. Kxf4 {[%emt 0:01:43]} Nxb4 {[%emt 0:01:15]} 33. Rxg3 {[%emt 0:00:22]} g6 {[%emt 0:00:39]} 34. Rh1 {[%emt 0:02:42]} Nxa2 {[%emt 0:01:32]} 35. Kg5 {[%emt 0:03:16]} Re8 {[%emt 0:04:01]} 36. Nf4 {[%emt 0:00:56]} Rxe4 {[%emt 0:00:41]} 37. h7+ {[%emt 0:01:19]} Kh8 {[%emt 0:01:56]} 38. Rh4 {[%emt 0:00:27]} Rc5+ {[%emt 0:00:47]} 39. Kh6 {[%emt 0:02:07]} Rxf4 {[%emt 0:00:21]} 40. Rh2 {[%emt 0:00:10]} Rff5 {[%emt 0:00:32]} 41. Rgh3 {[%emt 0:32:21]} Rh5+ {[%emt 0:30:08]} 0-1

[Event "NOR-ch Various 2019"]
[Site "Larvik"]
[Date "2019.07.06"]
[Round "1.20"]
[White "Kjaras, Alf Marius"]
[Black "Melaa, Sondre"]
[Result "1-0"]
[ECO "D02"]
[WhiteElo "1860"]
[BlackElo "2118"]
[Annotator "NA"]
[PlyCount "59"]
[EventDate "2019.07.06"]
[EventType "swiss"]
[EventCountry "NOR"]
[SourceTitle "playchess.com"]
[Source "ChessBase"]
[SourceQuality "1"]
[TimeControl "40/5400+30:1800+30"]

1. d4 {[%emt 0:00:00]} d5 {[%emt 0:00:02]} 2. Bf4 {[%emt 0:00:00]} Nf6 {[%emt 0:00:27]} 3. e3 {[%emt 0:00:00]} e6 {[%emt 0:00:16]} 4. Nf3 {[%emt 0:00:05]} Bd6 {[%emt 0:00:09]} 5. Bg3 {[%emt 0:00:39]} O-O {[%emt 0:00:14]} 6. Bd3 {[%emt 0:00:49]} b6 {[%emt 0:00:45]} 7. Qe2 {[%emt 0:02:23]} Bb7 {[%emt 0:06:33]} 8. c3 {[%emt 0:11:59]} c5 {[%emt 0:03:25]} 9. Nbd2 {[%emt 0:15:25]} Ne4 {[%emt 0:05:27]} 10. Bxe4 {[%emt 0:09:15]} dxe4 {[%emt 0:00:14]} 11. Ne5 {[%emt 0:00:18]} Bxe5 {[%emt 0:20:30]} 12. dxe5 {[%emt 0:02:26]} Qd3 {[%emt 0:08:37]} 13. Qh5 {[%emt 0:16:59]} Rd8 {[%emt 0:03:27]} 14. O-O-O {[%emt 0:00:20]} Rf8 {[%emt 0:22:27]} 15. Bh4 {[%emt 0:19:42]} h6 {[%emt 0:04:07]} 16. g4 {[%emt 0:04:04]} Bd5 {[%emt 0:01:01]} 17. Bf6 {[%emt 0:03:09]} Nc6 {[%emt 0:04:14]} 18. g5 {[%emt 0:01:55]} Nb4 {[%emt 0:00:08]} 19. cxb4 {[%emt 0:01:24]} cxb4 {[%emt 0:00:06]} 20. Nc4 {[%emt 0:03:13]} Qxc4+ {[%emt 0:02:25]} 21. Kd2 {[%emt 0:00:04]} b3 {[%emt 0:02:39]} 22. gxh6 {[%emt 0:03:19]} Qb4+ {[%emt 0:00:45]} 23. Kc1 {[%emt 0:00:21]} Rfc8+ {[%emt 0:00:18]} 24. Kb1 {[%emt 0:00:07]} bxa2+ {[%emt 0:00:39]} 25. Ka1 {[%emt 0:00:05]} gxf6 {[%emt 0:00:26]} 26. Rhg1+ {[%emt 0:03:12]} Kf8 {[%emt 0:00:26]} 27. Rg7 {[%emt 0:01:11]} Rc7 {[%emt 0:01:16]} 28. Rdg1 {[%emt 0:00:43]} Qd2 {[%emt 0:04:06]} 29. Rg8+ {[%emt 0:00:08]} Ke7 {[%emt 0:00:10]} 30. Qxf7+ {[%emt 0:00:14]} 1-0

[Event "NOR-ch Various 2019"]
[Site "Larvik"]
[Date "2019.07.06"]
[Round "1.21"]
[White "Nielsen, Andre"]
[Black "Sjoberg, Isak"]
[Result "0-1"]
[ECO "C88"]
[WhiteElo "2229"]
[BlackElo "2182"]
[Annotator "NA RC"]
[PlyCount "114"]
[EventDate "2019.07.06"]
[EventType "swiss"]
[EventCountry "NOR"]
[SourceTitle "playchess.com"]
[Source "ChessBase"]
[SourceQuality "1"]
[TimeControl "40/5400+30:1800+30"]

1. e4 {[%emt 0:00:00]} e5 {[%emt 0:00:26]} 2. Nf3 {[%emt 0:00:26]} Nc6 {[%emt 0:00:29]} 3. Bb5 {[%emt 0:01:07]} a6 {[%emt 0:01:00]} 4. Ba4 {[%emt 0:00:11]} Nf6 {[%emt 0:00:17]} 5. O-O {[%emt 0:00:27]} Be7 {[%emt 0:01:03]} 6. Re1 {[%emt 0:00:21]} b5 {[%emt 0:00:04]} 7. Bb3 {[%emt 0:00:06]} O-O {[%emt 0:00:48]} 8. d3 {[%emt 0:11:59]} d6 {[%emt 0:11:00]} 9. Nc3 {[%emt 0:07:05]} Bg4 {[%emt 0:01:15]} 10. Be3 {[%emt 0:03:28]} Nd4 {[%emt 0:00:09]} 11. Bxd4 {[%emt 0:00:39]} exd4 {[%emt 0:00:05]} 12. Nd5 {[%emt 0:00:16]} Nd7 {[%emt 0:03:43]} 13. h3 {[%emt 0:09:26]} Bxf3 {[%emt 0:00:37]} 14. Qxf3 {[%emt 0:00:11]} c6 {[%emt 0:00:03]} 15. Nf4 {[%emt 0:01:20]} Rb8 {[%emt 0:00:06]} 16. g3 {[%emt 0:13:47]} a5 {[%emt 0:06:24]} 17. a3 {[%emt 0:07:45]} a4 {[%emt 0:09:04]} 18. Ba2 {[%emt 0:00:06]} b4 {[%emt 0:04:31]} 19. b3 {[%emt 0:10:32]} axb3 {[%emt 0:09:34]} 20. Bxb3 {[%emt 0:00:12]} bxa3 {[%emt 0:04:08]} 21. Rxa3 {[%emt 0:00:59]} Nc5 {[%emt 0:03:04]} 22. Ne2 {[%emt 0:05:07]} Nxb3 {[%emt 0:04:59]} 23. Rxb3 {[%emt 0:00:13]} Rxb3 {[%emt 0:00:05]} 24. cxb3 {[%emt 0:00:06]} Bf6 {[%emt 0:02:27]} 25. Rc1 {[%emt 0:05:26]} Qb6 {[%emt 0:01:28]} 26. Kg2 {[%emt 0:02:31]} Qb5 {[%emt 0:05:42]} 27. h4 {[%emt 0:03:20]} Rc8 {[%emt 0:05:20]} 28. Nf4 {[%emt 0:02:37]} g6 {[%emt 0:07:43]} 29. h5 {[%emt 0:10:59]} Bg5 {[%emt 0:07:30]} 30. hxg6 {[%emt 0:00:15]} hxg6 {[%emt 0:03:50]} 31. Qg4 {[%emt 0:01:12]} Rb8 {[%emt 0:01:20]} 32. Rh1 {[%emt 0:00:55]} Bxf4 {[%emt 0:01:10]} 33. Qxf4 {[%emt 0:01:50]} Qxd3 {[%emt 0:00:59]} 34. Rh4 {[%emt 0:01:01]} Rb5 {[%emt 0:02:04]} 35. Qxd6 {[%emt 0:00:52]} Rh5 {[%emt 0:00:14]} 36. Rxh5 {[%emt 0:00:40]} Qxe4+ {[%emt 0:00:18]} 37. f3 {[%emt 0:00:27]} Qe2+ {[%emt 0:01:20]} 38. Kh3 {[%emt 0:00:25]} Qf1+ {[%emt 0:00:20]} 39. Kh2 {[%emt 0:00:22]} Qf2+ {[%emt 0:01:00]} 40. Kh3 {[%emt 0:00:09]} Qf1+ {[%emt 0:00:37]} 41. Kh2 {[%emt 0:30:19]} Qe2+ {[%emt 0:09:15]} 42. Kg1 {[%emt 0:00:00]} Qe3+ {[%emt 0:06:52]} 43. Kg2 {[%emt 0:00:00]} gxh5 {[%emt 0:00:03]} 44. Qxc6 {[%emt 0:00:00]} d3 {[%emt 0:00:53]} 45. Qc8+ {[%emt 0:00:00]} Kg7 {[%emt 0:01:26]} 46. Qc3+ {[%emt 0:00:00]} f6 {[%emt 0:00:13]} 47. Qc7+ {[%emt 0:02:15]} Kg6 {[%emt 0:01:02]} 48. f4 {[%emt 0:00:33]} Qe4+ {[%emt 0:03:02]} 49. Kh2 {[%emt 0:00:25]} d2 {[%emt 0:00:28]} 50. Qd8 {[%emt 0:02:07]} Qe2+ {[%emt 0:00:48]} 51. Kh3 {[%emt 0:00:08]} Qf1+ {[%emt 0:01:05]} 52. Kh2 {[%emt 0:00:09]} d1=Q {[%emt 0:00:15]} 53. Qg8+ {[%emt 0:01:06]} Kf5 {[%emt 0:00:03]} 54. Qh7+ {[%emt 0:00:13]} Kg4 {[%emt 0:00:30]} 55. Qg6+ {[%emt 0:00:23]} Kf3 {[%emt 0:00:04]} 56. Qxh5+ {[%emt 0:00:24]} Ke3 {[%emt 0:00:46]} 57. Qc5+ {[%emt 0:00:38]} Qd4 {[%emt 0:00:06]} 0-1

[Event "NOR-ch Various 2019"]
[Site "Larvik"]
[Date "2019.07.06"]
[Round "1.22"]
[White "Tunsjo, Axel"]
[Black "Engedal, Jo Fronsdal"]
[Result "1-0"]
[ECO "B01"]
[WhiteElo "2039"]
[BlackElo "1483"]
[Annotator "NA"]
[PlyCount "101"]
[EventDate "2019.07.06"]
[EventType "swiss"]
[EventCountry "NOR"]
[SourceTitle "playchess.com"]
[Source "ChessBase"]
[SourceQuality "1"]
[TimeControl "40/5400+30:1800+30"]

1. e4 {[%emt 0:00:00]} d5 {[%emt 0:00:36]} 2. exd5 {[%emt 0:00:00]} Qxd5 {[%emt 0:00:20]} 3. Nc3 {[%emt 0:00:02]} Qa5 {[%emt 0:00:09]} 4. d4 {[%emt 0:00:16]} c6 {[%emt 0:00:11]} 5. Nf3 {[%emt 0:00:28]} Nf6 {[%emt 0:01:08]} 6. Bc4 {[%emt 0:02:18]} Bf5 {[%emt 0:02:07]} 7. O-O {[%emt 0:00:56]} e6 {[%emt 0:00:22]} 8. Bf4 {[%emt 0:02:36]} Nd5 {[%emt 0:04:23]} 9. Bd2 {[%emt 0:06:54]} Bb4 {[%emt 0:06:21]} 10. Nxd5 {[%emt 0:01:10]} cxd5 {[%emt 0:04:31]} 11. Bxd5 {[%emt 0:01:12]} Qxd5 {[%emt 0:01:55]} 12. Bxb4 {[%emt 0:00:39]} Nc6 {[%emt 0:01:15]} 13. Ba3 {[%emt 0:02:03]} Be4 {[%emt 0:03:54]} 14. c3 {[%emt 0:01:29]} g5 {[%emt 0:00:57]} 15. Ne1 {[%emt 0:07:26]} O-O-O {[%emt 0:06:50]} 16. Nc2 {[%emt 0:03:56]} Bxg2 {[%emt 0:03:13]} 17. Ne3 {[%emt 0:00:35]} Bf3 {[%emt 0:00:11]} 18. Nxd5 {[%emt 0:00:03]} Bxd1 {[%emt 0:00:10]} 19. Ne7+ {[%emt 0:00:03]} Nxe7 {[%emt 0:00:35]} 20. Bxe7 {[%emt 0:00:05]} Be2 {[%emt 0:04:13]} 21. Bxd8 {[%emt 0:01:03]} Bxf1 {[%emt 0:00:10]} 22. Bf6 {[%emt 0:00:02]} Rg8 {[%emt 0:00:59]} 23. Kxf1 {[%emt 0:00:17]} Kd7 {[%emt 0:00:20]} 24. Rd1 {[%emt 0:00:18]} h5 {[%emt 0:01:03]} 25. d5 {[%emt 0:00:20]} Rg6 {[%emt 0:00:22]} 26. dxe6+ {[%emt 0:00:07]} Kxe6 {[%emt 0:00:02]} 27. Bd4 {[%emt 0:00:06]} Kf5 {[%emt 0:00:49]} 28. Be3 {[%emt 0:00:25]} Kg4 {[%emt 0:00:18]} 29. Kg2 {[%emt 0:00:09]} h4 {[%emt 0:00:27]} 30. h3+ {[%emt 0:00:04]} Kh5 {[%emt 0:00:16]} 31. Bxa7 {[%emt 0:00:22]} Ra6 {[%emt 0:00:06]} 32. Bc5 {[%emt 0:00:02]} Rxa2 {[%emt 0:00:11]} 33. Ba3 {[%emt 0:00:04]} Kg6 {[%emt 0:00:13]} 34. Kf3 {[%emt 0:00:11]} Kf6 {[%emt 0:00:22]} 35. Ke4 {[%emt 0:01:15]} Ke6 {[%emt 0:00:10]} 36. Rd6+ {[%emt 0:00:04]} Ke7 {[%emt 0:00:08]} 37. Rd1+ {[%emt 0:00:33]} Ke6 {[%emt 0:00:23]} 38. Rg1 {[%emt 0:00:09]} f5+ {[%emt 0:00:53]} 39. Kd4 {[%emt 0:00:03]} g4 {[%emt 0:00:16]} 40. hxg4 {[%emt 0:00:20]} fxg4 {[%emt 0:00:09]} 41. Rxg4 {[%emt 0:30:15]} Ra1 {[%emt 0:30:05]} 42. Rxh4 {[%emt 0:00:04]} Rf1 {[%emt 0:00:24]} 43. Rh7 {[%emt 0:00:15]} Rxf2 {[%emt 0:00:20]} 44. Re7+ {[%emt 0:00:04]} Kf6 {[%emt 0:00:18]} 45. Rxb7 {[%emt 0:00:02]} Rd2+ {[%emt 0:00:30]} 46. Kc5 {[%emt 0:00:21]} Ke6 {[%emt 0:00:12]} 47. c4 {[%emt 0:00:14]} Rd8 {[%emt 0:00:14]} 48. Kb6 {[%emt 0:00:17]} Ra8 {[%emt 0:00:59]} 49. c5 {[%emt 0:00:03]} Rc8 {[%emt 0:00:53]} 50. c6 {[%emt 0:00:10]} Kd5 {[%emt 0:00:10]} 51. c7 {[%emt 0:00:13]} 1-0

[Event "NOR-ch Various 2019"]
[Site "Larvik"]
[Date "2019.07.06"]
[Round "1.23"]
[White "Lovasen, Viktor Nygaard"]
[Black "Valvag, Torbjorn"]
[Result "1/2-1/2"]
[ECO "D04"]
[WhiteElo "1451"]
[BlackElo "1912"]
[Annotator "NA"]
[PlyCount "121"]
[EventDate "2019.07.06"]
[EventType "swiss"]
[EventCountry "NOR"]
[SourceTitle "playchess.com"]
[Source "ChessBase"]
[SourceQuality "1"]
[TimeControl "40/5400+30:1800+30"]

1. d4 {[%emt 0:00:00]} d5 {[%emt 0:00:00]} 2. Nf3 {[%emt 0:00:00]} Nf6 {[%emt 0:00:00]} 3. e3 {[%emt 0:00:01]} Bf5 {[%emt 0:00:13]} 4. Bd3 {[%emt 0:01:37]} Bg6 {[%emt 0:00:10]} 5. O-O {[%emt 0:00:22]} e6 {[%emt 0:00:04]} 6. b3 {[%emt 0:02:37]} Bd6 {[%emt 0:00:08]} 7. c4 {[%emt 0:03:04]} c6 {[%emt 0:00:03]} 8. Ba3 {[%emt 0:01:38]} Bxa3 {[%emt 0:05:35]} 9. Nxa3 {[%emt 0:00:20]} Ne4 {[%emt 0:00:04]} 10. Ne5 {[%emt 0:09:36]} Nd7 {[%emt 0:03:42]} 11. Nxg6 {[%emt 0:04:04]} hxg6 {[%emt 0:00:47]} 12. Bxe4 {[%emt 0:00:40]} dxe4 {[%emt 0:00:14]} 13. c5 {[%emt 0:05:31]} Qh4 {[%emt 0:05:38]} 14. h3 {[%emt 0:01:04]} f5 {[%emt 0:00:31]} 15. Qe1 {[%emt 0:11:31]} g5 {[%emt 0:12:45]} 16. f3 {[%emt 0:08:26]} Qxe1 {[%emt 0:01:51]} 17. Raxe1 {[%emt 0:00:15]} exf3 {[%emt 0:01:22]} 18. Rxf3 {[%emt 0:00:33]} Nf6 {[%emt 0:00:05]} 19. Nc4 {[%emt 0:04:35]} Ne4 {[%emt 0:00:23]} 20. Nd6+ {[%emt 0:04:27]} Nxd6 {[%emt 0:00:06]} 21. cxd6 {[%emt 0:00:10]} Rh4 {[%emt 0:03:11]} 22. Rg3 {[%emt 0:02:10]} Rd8 {[%emt 0:02:55]} 23. Rxg5 {[%emt 0:01:28]} Kf7 {[%emt 0:00:21]} 24. Rg3 {[%emt 0:05:58]} Rxd6 {[%emt 0:00:13]} 25. Rf3 {[%emt 0:00:14]} Re4 {[%emt 0:00:48]} 26. Kf2 {[%emt 0:02:31]} Rd5 {[%emt 0:02:30]} 27. g4 {[%emt 0:00:32]} Kf6 {[%emt 0:02:49]} 28. gxf5 {[%emt 0:02:58]} exf5 {[%emt 0:00:40]} 29. Rc1 {[%emt 0:00:48]} g5 {[%emt 0:00:27]} 30. Rc4 {[%emt 0:02:21]} Kg6 {[%emt 0:05:13]} 31. b4 {[%emt 0:05:32]} f4 {[%emt 0:08:28]} 32. a3 {[%emt 0:04:25]} fxe3+ {[%emt 0:00:24]} 33. Rxe3 {[%emt 0:00:10]} Rexd4 {[%emt 0:00:33]} 34. Rxd4 {[%emt 0:00:10]} Rxd4 {[%emt 0:00:07]} 35. Re7 {[%emt 0:00:08]} Rf4+ {[%emt 0:02:33]} 36. Ke2 {[%emt 0:04:23]} Rf7 {[%emt 0:00:12]} 37. Re5 {[%emt 0:00:12]} Kf6 {[%emt 0:00:33]} 38. Rc5 {[%emt 0:00:16]} Re7+ {[%emt 0:00:18]} 39. Kf3 {[%emt 0:00:33]} Re5 {[%emt 0:00:11]} 40. Rc4 {[%emt 0:00:40]} Kf5 {[%emt 0:00:09]} 41. h4 {[%emt 0:31:41]} Rd5 {[%emt 0:34:13]} 42. Ke3 {[%emt 0:04:29]} Re5+ {[%emt 0:05:32]} 43. Kf3 {[%emt 0:00:22]} a5 {[%emt 0:00:46]} 44. hxg5 {[%emt 0:02:26]} Kxg5 {[%emt 0:00:17]} 45. a4 {[%emt 0:02:19]} Kf5 {[%emt 0:01:09]} 46. bxa5 {[%emt 0:01:04]} Rxa5 {[%emt 0:00:12]} 47. Rb4 {[%emt 0:00:09]} Ra7 {[%emt 0:00:08]} 48. Ke3 {[%emt 0:00:22]} Ke5 {[%emt 0:00:03]} 49. Kd3 {[%emt 0:00:27]} c5 {[%emt 0:00:58]} 50. Rb5 {[%emt 0:00:18]} Kd5 {[%emt 0:00:43]} 51. a5 {[%emt 0:00:10]} Ra6 {[%emt 0:01:50]} 52. Kc3 {[%emt 0:01:09]} Rh6 {[%emt 0:01:35]} 53. Rxb7 {[%emt 0:00:07]} Rh3+ {[%emt 0:01:12]} 54. Kd2 {[%emt 0:00:32]} Ra3 {[%emt 0:00:07]} 55. Ra7 {[%emt 0:00:20]} Kc4 {[%emt 0:00:12]} 56. a6 {[%emt 0:00:46]} Ra2+ {[%emt 0:00:11]} 57. Ke3 {[%emt 0:00:49]} Kc3 {[%emt 0:03:20]} 58. Ra8 {[%emt 0:00:29]} c4 {[%emt 0:00:41]} 59. a7 {[%emt 0:00:12]} Ra3 {[%emt 0:00:32]} 60. Ke2 {[%emt 0:00:25]} Ra2+ {[%emt 0:00:16]} 61. Ke3 {[%emt 0:00:21]} 1/2-1/2

[Event "NOR-ch Various 2019"]
[Site "Larvik"]
[Date "2019.07.06"]
[Round "1.24"]
[White "Furulund, Eirik Eikeland"]
[Black "Strand, Vetle Bjorge"]
[Result "0-1"]
[ECO "C02"]
[WhiteElo "1134"]
[BlackElo "1765"]
[Annotator "NA"]
[PlyCount "64"]
[EventDate "2019.07.06"]
[EventType "swiss"]
[EventCountry "NOR"]
[SourceTitle "playchess.com"]
[Source "ChessBase"]
[SourceQuality "1"]
[TimeControl "40/5400+30:1800+30"]

1. e4 {[%emt 0:00:00]} e6 {[%emt 0:00:00]} 2. d4 {[%emt 0:00:00]} d5 {[%emt 0:00:00]} 3. e5 {[%emt 0:00:00]} c5 {[%emt 0:00:00]} 4. c3 {[%emt 0:00:30]} Nc6 {[%emt 0:00:00]} 5. Nf3 {[%emt 0:00:34]} Qb6 {[%emt 0:00:01]} 6. Be2 {[%emt 0:02:46]} cxd4 {[%emt 0:03:26]} 7. cxd4 {[%emt 0:00:30]} Nge7 {[%emt 0:01:04]} 8. Bd3 {[%emt 0:00:57]} Bd7 {[%emt 0:00:36]} 9. Bc2 {[%emt 0:00:33]} Nb4 {[%emt 0:01:52]} 10. b3 {[%emt 0:04:29]} Nxc2+ {[%emt 0:02:04]} 11. Qxc2 {[%emt 0:00:12]} Rc8 {[%emt 0:00:46]} 12. Qd1 {[%emt 0:00:20]} Nf5 {[%emt 0:01:57]} 13. a3 {[%emt 0:12:55]} Bb5 {[%emt 0:04:01]} 14. b4 {[%emt 0:02:50]} Rc7 {[%emt 0:24:47]} 15. Bb2 {[%emt 0:04:03]} Be7 {[%emt 0:01:29]} 16. Nc3 {[%emt 0:02:14]} Bc4 {[%emt 0:05:27]} 17. Ne2 {[%emt 0:02:07]} Qa6 {[%emt 0:05:17]} 18. Nc3 {[%emt 0:06:34]} O-O {[%emt 0:04:35]} 19. Qa4 {[%emt 0:18:29]} Qc6 {[%emt 0:09:10]} 20. Qxc6 {[%emt 0:00:28]} Rxc6 {[%emt 0:03:13]} 21. Kd2 {[%emt 0:03:30]} f6 {[%emt 0:00:59]} 22. Nd1 {[%emt 0:05:43]} Rfc8 {[%emt 0:01:31]} 23. Ne3 {[%emt 0:01:06]} Nxe3 {[%emt 0:00:51]} 24. Kxe3 {[%emt 0:00:21]} Bb3 {[%emt 0:09:07]} 25. Rac1 {[%emt 0:01:16]} Rc2 {[%emt 0:00:26]} 26. Nd2 {[%emt 0:04:07]} Ba4 {[%emt 0:00:37]} 27. f4 {[%emt 0:01:28]} fxe5 {[%emt 0:04:46]} 28. dxe5 {[%emt 0:00:34]} a5 {[%emt 0:02:32]} 29. bxa5 {[%emt 0:01:41]} Bc5+ {[%emt 0:00:33]} 30. Bd4 {[%emt 0:04:36]} Bxd4+ {[%emt 0:00:10]} 31. Kxd4 {[%emt 0:00:22]} Rxc1 {[%emt 0:00:10]} 32. Rxc1 {[%emt 0:00:20]} Rxc1 {[%emt 0:00:01]} 0-1

[Event "NOR-ch Various 2019"]
[Site "Larvik"]
[Date "2019.07.06"]
[Round "1.25"]
[White "Olsen, William Alexander"]
[Black "Anfindsen, Andreas Gautestad"]
[Result "1-0"]
[ECO "D41"]
[WhiteElo "1764"]
[BlackElo "1128"]
[Annotator "NA"]
[PlyCount "63"]
[EventDate "2019.07.06"]
[EventType "swiss"]
[EventCountry "NOR"]
[SourceTitle "playchess.com"]
[Source "ChessBase"]
[SourceQuality "1"]
[TimeControl "40/5400+30:1800+30"]

1. Nf3 {[%emt 0:00:00]} c5 {[%emt 0:00:00]} 2. c4 {[%emt 0:00:00]} Nf6 {[%emt 0:00:31]} 3. g3 {[%emt 0:00:01]} e6 {[%emt 0:01:12]} 4. Bg2 {[%emt 0:00:28]} Nc6 {[%emt 0:01:16]} 5. O-O {[%emt 0:00:00]} Be7 {[%emt 0:00:08]} 6. d4 {[%emt 0:01:45]} O-O {[%emt 0:01:50]} 7. Nc3 {[%emt 0:00:20]} d5 {[%emt 0:02:20]} 8. dxc5 {[%emt 0:00:38]} Bxc5 {[%emt 0:00:19]} 9. cxd5 {[%emt 0:00:13]} Nxd5 {[%emt 0:00:56]} 10. Nxd5 {[%emt 0:00:13]} exd5 {[%emt 0:00:15]} 11. a3 {[%emt 0:00:39]} Bf5 {[%emt 0:02:41]} 12. b4 {[%emt 0:00:16]} Bb6 {[%emt 0:00:16]} 13. Bb2 {[%emt 0:00:22]} a5 {[%emt 0:03:28]} 14. b5 {[%emt 0:00:44]} Ne7 {[%emt 0:01:02]} 15. Nd4 {[%emt 0:01:57]} Be4 {[%emt 0:01:00]} 16. Bxe4 {[%emt 0:04:56]} dxe4 {[%emt 0:00:13]} 17. e3 {[%emt 0:01:15]} Qd7 {[%emt 0:02:35]} 18. Qh5 {[%emt 0:01:47]} Rac8 {[%emt 0:01:19]} 19. Qe5 {[%emt 0:02:45]} Ng6 {[%emt 0:00:23]} 20. Qxe4 {[%emt 0:00:14]} Rfe8 {[%emt 0:00:36]} 21. Qf5 {[%emt 0:00:17]} Qd6 {[%emt 0:01:58]} 22. Rfd1 {[%emt 0:01:13]} Rc5 {[%emt 0:00:35]} 23. Qf3 {[%emt 0:00:40]} Qe7 {[%emt 0:01:19]} 24. Rac1 {[%emt 0:10:19]} Ne5 {[%emt 0:00:41]} 25. Qe4 {[%emt 0:01:08]} Qf6 {[%emt 0:01:41]} 26. f4 {[%emt 0:01:11]} Rd5 {[%emt 0:03:48]} 27. Qxd5 {[%emt 0:01:23]} Ng4 {[%emt 0:00:24]} 28. Qd7 {[%emt 0:00:19]} Rd8 {[%emt 0:00:36]} 29. Qxg4 {[%emt 0:00:09]} Qe7 {[%emt 0:00:38]} 30. Re1 {[%emt 0:01:16]} Qe4 {[%emt 0:03:35]} 31. Rc8 {[%emt 0:02:46]} Qe7 {[%emt 0:01:12]} 32. Nf5 {[%emt 0:00:33]} 1-0

[Event "NOR-ch Various 2019"]
[Site "Larvik"]
[Date "2019.07.06"]
[Round "1.26"]
[White "Strand, Amund Pihl"]
[Black "Unneland, Mathias"]
[Result "0-1"]
[ECO "A45"]
[WhiteElo "1665"]
[BlackElo "2008"]
[Annotator "NA"]
[PlyCount "72"]
[EventDate "2019.07.06"]
[EventType "swiss"]
[EventCountry "NOR"]
[SourceTitle "playchess.com"]
[Source "ChessBase"]
[SourceQuality "1"]
[TimeControl "40/5400+30:1800+30"]

1. d4 {[%emt 0:00:00]} Nf6 {[%emt 0:00:00]} 2. Bf4 {[%emt 0:00:00]} c5 {[%emt 0:00:00]} 3. c3 {[%emt 0:01:33]} Qb6 {[%emt 0:00:12]} 4. Qb3 {[%emt 0:04:41]} Qxb3 {[%emt 0:02:00]} 5. axb3 {[%emt 0:00:15]} cxd4 {[%emt 0:00:09]} 6. cxd4 {[%emt 0:00:07]} Nc6 {[%emt 0:00:05]} 7. Nf3 {[%emt 0:08:41]} e6 {[%emt 0:03:21]} 8. Nc3 {[%emt 0:05:11]} Bb4 {[%emt 0:01:40]} 9. e3 {[%emt 0:08:01]} Nd5 {[%emt 0:01:43]} 10. Rc1 {[%emt 0:08:34]} Nxf4 {[%emt 0:00:52]} 11. exf4 {[%emt 0:00:08]} d5 {[%emt 0:00:57]} 12. Bb5 {[%emt 0:03:09]} O-O {[%emt 0:07:15]} 13. O-O {[%emt 0:02:23]} Na5 {[%emt 0:10:36]} 14. Na2 {[%emt 0:10:04]} Bd6 {[%emt 0:02:34]} 15. b4 {[%emt 0:02:48]} a6 {[%emt 0:01:12]} 16. bxa5 {[%emt 0:13:15]} axb5 {[%emt 0:00:06]} 17. b4 {[%emt 0:00:54]} Bxf4 {[%emt 0:00:09]} 18. Rc5 {[%emt 0:01:12]} Bd7 {[%emt 0:08:46]} 19. Ne5 {[%emt 0:03:30]} Bxe5 {[%emt 0:02:03]} 20. dxe5 {[%emt 0:00:05]} Rfc8 {[%emt 0:02:20]} 21. Rxc8+ {[%emt 0:07:59]} Rxc8 {[%emt 0:00:17]} 22. Rc1 {[%emt 0:06:04]} f6 {[%emt 0:02:03]} 23. f4 {[%emt 0:01:05]} g5 {[%emt 0:02:02]} 24. g3 {[%emt 0:00:34]} Kf7 {[%emt 0:05:11]} 25. Kf2 {[%emt 0:03:14]} gxf4 {[%emt 0:03:32]} 26. gxf4 {[%emt 0:00:25]} Kg6 {[%emt 0:00:54]} 27. Rxc8 {[%emt 0:04:37]} Bxc8 {[%emt 0:00:11]} 28. Nc1 {[%emt 0:00:39]} fxe5 {[%emt 0:00:38]} 29. fxe5 {[%emt 0:00:12]} Kf5 {[%emt 0:00:34]} 30. Nd3 {[%emt 0:00:21]} Ke4 {[%emt 0:00:27]} 31. Ke2 {[%emt 0:00:07]} Kd4 {[%emt 0:00:11]} 32. Kd2 {[%emt 0:00:40]} Kc4 {[%emt 0:00:17]} 33. Kc2 {[%emt 0:01:38]} h5 {[%emt 0:00:42]} 34. h4 {[%emt 0:02:11]} Kd4 {[%emt 0:00:24]} 35. Kd2 {[%emt 0:00:09]} Ke4 {[%emt 0:00:06]} 36. Ke2 {[%emt 0:00:05]} d4 {[%emt 0:00:41]} 0-1